fUSD/lending_fUSD_20250526
["ID","MTS","AMOUNT","RATE_DAILY","PERIOD"]
[362400271,1748253044612,-420.0,0.00019999,2]
[362400272,1748253044621,-436.9402986,0.00019999,2]
[362400273,1748253044631,-420.0,0.00019999,2]
[362400274,1748253044639,-569.11342982,0.00019999,2]
[362400275,1748253044648,-420.0,0.00019999,2]
[362400276,1748253044657,-500.0,0.00019999,2]
[362400277,1748253044667,-447.44084297,0.00019999,2]
[362400278,1748253044676,-420.0,0.00019999,2]
[362400279,1748253044685,-423.14595734,0.00019999,2]
[362400280,1748253044694,-341.54053376,0.00019999,2]
[362400281,1748253044703,-420.0,0.00019999,2]
[362400282,1748253044712,-214.55084618,0.00019999,2]
[362400283,1748253044721,-154.7055245,0.00019999,2]
[362400284,1748253044730,-420.0,0.00019999,2]
[362400285,1748253044739,-420.0,0.00019999,2]
[362400286,1748253044748,-272.07040359,0.00019999,2]
[362400287,1748253044758,-500.0,0.00019999,2]
[362400288,1748253044767,-420.0,0.00019999,2]
[362400289,1748253044776,-420.0,0.00019999,2]
[362400290,1748253044785,-428.02896873,0.00019999,2]
[362400291,1748253044794,-420.0,0.00019999,2]
[362400292,1748253044803,-556.19668243,0.00019999,2]
[362400293,1748253044812,-420.0,0.00019999,2]
[362400294,1748253044821,-420.0,0.00019999,2]
[362400295,1748253044830,-285.87754563,0.00019999,2]
[362400296,1748253044839,-420.0,0.00019999,2]
[362400297,1748253044848,-152.45,0.00019999,2]
[362400298,1748253044857,-521.2593754,0.00019999,2]
[362400299,1748253044866,-179.23,0.00019999,2]
[362400300,1748253044875,-420.0,0.00019999,2]
[362400301,1748253044884,-490.46527694,0.00019999,2]
[362400302,1748253044893,-420.0,0.00019999,2]
[362400303,1748253044903,-420.0,0.00019999,2]
[362400304,1748253044912,-378.09302363,0.00019999,2]
[362400305,1748253044921,-41.00402471,0.00019999,2]
[362400306,1748253045138,-420.0,0.00019994,2]
[362400307,1748253045147,-170.58597529,0.00019999,2]
[362400308,1748253045157,-67.37488471,0.00019999,2]
[362400311,1748253045402,-1792.51934264,0.00019899,2]
[362400312,1748253045412,-420.0,0.00019994,2]
[362400313,1748253045421,-420.0,0.00019994,2]
[362400314,1748253045431,-420.0,0.00019994,2]
[362400315,1748253045440,-536.55401836,0.00019995,2]
[362400316,1748253045449,-352.62511529,0.00019999,2]
[362400317,1748253045458,-420.0,0.00019999,2]
[362400318,1748253045468,-420.0,0.00019999,2]
[362400319,1748253045477,-420.0,0.00019999,2]
[362400320,1748253045486,-420.0,0.00019999,2]
[362400321,1748253045495,-420.0,0.00019999,2]
[362400322,1748253045504,-420.0,0.00019999,2]
[362400323,1748253045514,-420.0,0.00019999,2]
[362400324,1748253045523,-393.99629209,0.00019999,2]
[362400325,1748253045532,-413.05,0.00019999,2]
[362400326,1748253045541,-420.0,0.00019999,2]
[362400327,1748253045550,-293.66,0.00019999,2]
[362400328,1748253045559,-420.0,0.00019999,2]
[362400329,1748253045568,-420.0,0.00019999,2]
[362400330,1748253045577,-569.9,0.00019999,2]
[362400331,1748253045587,-1153.69523162,0.0002,3]
[362400332,1748253053401,-228880.16234907,0.0002,3]
[362400333,1748253053413,-255285.70423507,0.0002,2]
[362400334,1748253053423,-65111.57185017,0.0002,2]
[362400335,1748253053433,-30165.79,0.0002,2]
[362400336,1748253053443,-3895465.28127841,0.0002,2]
[362400337,1748253053454,-250.0,0.0002,2]
[362400338,1748253053465,-275.9,0.0002,2]
[362400339,1748253053475,-10529.75401048,0.0002,2]
[362400340,1748253053486,-1140.38801132,0.0002,2]
[362400341,1748253053496,-1085.97371942,0.0002,2]
[362400342,1748253053507,-7254.0582905,0.0002,2]
[362400343,1748253053518,-3801717.8626391,0.0002,2]
[362400344,1748253053530,-179.35569269,0.0002,2]
[362400345,1748253053540,-950.57184337,0.0002,2]
[362400346,1748253053550,-846.91328836,0.0002,2]
[362400347,1748253053560,-2006.02,0.0002,2]
[362400348,1748253053570,-8300.0,0.0002,4]
[362400349,1748253053580,-152.199333,0.0002,2]
[362400350,1748253053589,-175.729274,0.0002,2]
[362400351,1748253053599,-151.0,0.0002,2]
[362400352,1748253053609,-152.681052,0.0002,2]
[362400353,1748253053618,-151.794378,0.0002,2]
[362400354,1748253053628,-152.46574,0.0002,2]
[362400355,1748253053637,-153.752563,0.0002,2]
[362400356,1748253053647,-290.521802,0.0002,2]
[362400357,1748253053656,-151.0,0.0002,2]
[362400358,1748253053666,-151.0,0.0002,2]
[362400359,1748253053675,-151.0,0.0002,2]
[362400360,1748253053684,-151.0,0.0002,2]
[362400361,1748253053693,-151.0,0.0002,2]
[362400362,1748253053703,-151.0,0.0002,2]
[362400363,1748253053712,-151.0,0.0002,2]
[362400364,1748253053724,-229.24158,0.0002,2]
[362400365,1748253053733,-151.0,0.0002,2]
[362400366,1748253053743,-151.0,0.0002,2]
[362400367,1748253053753,-498.85642,0.0002,2]
[362400368,1748253053763,-498.85642,0.0002,2]
[362400369,1748253053773,-498.85642,0.0002,2]
[362400370,1748253053783,-498.85642,0.0002,2]
[362400371,1748253053792,-5800.0,0.0002,2]
[362400372,1748253053802,-174066.84264591,0.0002,2]
[362400373,1748253053811,-151.0,0.0002,2]
[362400374,1748253053821,-151.0,0.0002,2]
[362400375,1748253053830,-151.0,0.0002,2]
[362400376,1748253053840,-151.0,0.0002,2]
[362400377,1748253053849,-297.524751,0.0002,2]
[362400378,1748253053859,-154.514077,0.0002,2]
[362400379,1748253053869,-297.524751,0.0002,2]
[362400380,1748253053879,-151.0,0.0002,2]
[362400381,1748253053889,-151.0,0.0002,2]
[362400382,1748253053898,-152.869557,0.0002,2]
[362400383,1748253053907,-654.892989,0.0002,2]
[362400384,1748253053917,-654.892989,0.0002,2]
[362400385,1748253053926,-151.0,0.0002,2]
[362400386,1748253053940,-151.0,0.0002,2]
[362400387,1748253053950,-151.0,0.0002,2]
[362400388,1748253053961,-151.0,0.0002,2]
[362400389,1748253053971,-151.948239,0.0002,2]
[362400390,1748253053980,-151.0,0.0002,2]
[362400391,1748253053991,-151.0,0.0002,2]
[362400392,1748253054001,-151.0,0.0002,2]
[362400393,1748253054011,-151.0,0.0002,2]
[362400394,1748253054021,-151.0,0.0002,2]
[362400395,1748253054032,-154.066768,0.0002,2]
[362400396,1748253054044,-151.0,0.0002,2]
[362400397,1748253054054,-151.0,0.0002,2]
[362400398,1748253054064,-151.0,0.0002,2]
[362400399,1748253054074,-151.0,0.0002,2]
[362400400,1748253054084,-151.0,0.0002,2]
[362400401,1748253054094,-4000.0,0.0002,2]
[362400402,1748253054104,-4000.0,0.0002,2]
[362400403,1748253054117,-4000.0,0.0002,2]
[362400404,1748253054126,-4000.0,0.0002,2]
[362400405,1748253054137,-4000.0,0.0002,2]
[362400406,1748253054147,-4000.0,0.0002,2]
[362400407,1748253054156,-151.0,0.0002,2]
[362400408,1748253054167,-151.0,0.0002,2]
[362400409,1748253054176,-232.386068,0.0002,2]
[362400410,1748253054187,-232.386068,0.0002,2]
[362400411,1748253054196,-4000.0,0.0002,4]
[362400412,1748253054207,-151.0,0.0002,2]
[362400413,1748253054217,-272.126462,0.0002,2]
[362400414,1748253054227,-272.126462,0.0002,2]
[362400415,1748253054236,-163.563401,0.0002,2]
[362400416,1748253054246,-151.0,0.0002,2]
[362400417,1748253054256,-151.0,0.0002,2]
[362400418,1748253054266,-500.0,0.0002,2]
[362400419,1748253054275,-500.0,0.0002,2]
[362400420,1748253054501,-4970.07546909,0.0002001,2]
[362400421,1748253054523,-500.0,0.00020028,2]
[362400422,1748253054533,-500.0,0.00020028,2]
[362400423,1748253054543,-350.0,0.00020055,2]
[362400424,1748253054553,-500.0,0.00020055,2]
[362400425,1748253054564,-588.5,0.000201,2]
[362400426,1748253054574,-1677.25137006,0.0002015,2]
[362400427,1748253054584,-250.0,0.00020174,2]
[362400428,1748253054594,-195.14,0.00020187,2]
[362400429,1748253054603,-1680.0,0.00020208,2]
[362400430,1748253054612,-6074.95447856,0.00020217,2]
[362400431,1748253054622,-501.35838057,0.00020521,2]
[362400432,1748253054632,-1000.0,0.00020521,2]
[362400433,1748253054642,-502.47839955,0.00020521,2]
[362400434,1748253054652,-1000.0,0.00020521,2]
[362400435,1748253054661,-500.0,0.00020521,2]
[362400436,1748253054671,-506.85979896,0.00020521,2]
[362400437,1748253054680,-1000.0,0.00020521,2]
[362400438,1748253054690,-1000.0,0.00020521,2]
[362400439,1748253054699,-186.56,0.00020548,2]
[362400440,1748253054709,-860.86,0.00020756,2]
[362400441,1748253054718,-1000.0,0.00020803,2]
[362400442,1748253054728,-150.0,0.00020814,2]
[362400443,1748253054737,-150.0,0.00020814,2]
[362400444,1748253054747,-571.0148464,0.00020814,2]
[362400445,1748253054756,-1000.0,0.00020986,2]
[362400446,1748253054766,-400.0,0.00021,2]
[362400447,1748253054775,-1157.24557895,0.00021,2]
[362400448,1748253054785,-190.99764169,0.00021,2]
[362400449,1748253054794,-4000.0,0.00021,4]
[362400450,1748253054803,-393.25432976,0.00021068,2]
[362400451,1748253054813,-785.04528908,0.00021068,2]
[362400452,1748253054823,-1500.0,0.00021068,2]
[362400453,1748253054832,-1439.43767487,0.00021068,2]
[362400454,1748253054842,-162.76980145,0.00021096,2]
[362400455,1748253054851,-237.00467473,0.000211,2]
[362400456,1748253054861,-200.0,0.00021107,2]
[362400457,1748253054870,-838.61,0.0002114,2]
[362400458,1748253054880,-1312.0,0.00021298,2]
[362400459,1748253054889,-938.0,0.00021298,2]
[362400460,1748253054899,-800.0,0.00021298,2]
[362400461,1748253054908,-633.0,0.00021298,2]
[362400462,1748253054918,-923.0,0.00021298,2]
[362400463,1748253054928,-587.0,0.00021298,2]
[362400464,1748253054937,-555.0,0.00021298,2]
[362400465,1748253054947,-1264.0,0.00021298,2]
[362400466,1748253054957,-1463.0,0.00021298,2]
[362400467,1748253054966,-865.0,0.00021298,2]
[362400468,1748253054977,-6920.0,0.00021298,2]
[362400469,1748253054987,-4059.0,0.00021298,2]
[362400470,1748253054996,-166.776,0.00021298,2]
[362400471,1748253055006,-881.0,0.00021298,2]
[362400472,1748253055015,-452.35,0.00021369,2]
[362400473,1748253055025,-2006.02,0.000215,2]
[362400474,1748253055035,-155.09069364,0.000215,2]
[362400475,1748253055046,-460.2,0.00021507,2]
[362400476,1748253055055,-1612.0,0.00021507,2]
[362400477,1748253055064,-460.2,0.00021507,2]
[362400478,1748253055074,-460.2,0.00021507,2]
[362400479,1748253055084,-460.2,0.00021507,2]
[362400480,1748253055094,-460.2,0.00021507,2]
[362400481,1748253055104,-924.52,0.00021507,2]
[362400482,1748253055113,-460.2,0.00021507,2]
[362400483,1748253055130,-460.2,0.00021507,2]
[362400484,1748253055140,-2000.0,0.00021616,2]
[362400485,1748253055151,-1008.54,0.00021644,2]
[362400486,1748253055161,-491.46,0.00021644,2]
[362400487,1748253055171,-207.0,0.00021687,8]
[362400488,1748253055181,-1000.0,0.00021773,2]
[362400489,1748253055192,-206.8,0.00021917,2]
[362400490,1748253055202,-500.0,0.00021917,2]
[362400491,1748253055213,-500.0,0.00021917,2]
[362400492,1748253055223,-500.0,0.00021917,2]
[362400493,1748253055234,-500.0,0.00021917,2]
[362400494,1748253055244,-500.0,0.00021917,2]
[362400495,1748253055254,-500.0,0.00021917,2]
[362400496,1748253055263,-500.0,0.00021917,2]
[362400497,1748253055273,-500.0,0.00021917,2]
[362400498,1748253055283,-500.0,0.00021917,2]
[362400499,1748253055294,-500.0,0.00021917,2]
[362400500,1748253055303,-584.41812246,0.00021917,2]
[362400501,1748253055313,-420.0,0.00021917,2]
[362400502,1748253055323,-420.0,0.00021917,2]
[362400503,1748253055333,-420.0,0.00021917,2]
[362400504,1748253055343,-484.48944295,0.00021917,2]
[362400505,1748253055353,-515.03566635,0.00021918,2]
[362400506,1748253055363,-500.0,0.00021918,2]
[362400507,1748253055373,-500.0,0.00021918,2]
[362400508,1748253055382,-500.0,0.00021918,2]
[362400509,1748253055392,-500.0,0.00021918,2]
[362400510,1748253055401,-500.0,0.00021918,2]
[362400511,1748253055411,-500.0,0.00021918,2]
[362400512,1748253055420,-500.0,0.00021918,2]
[362400513,1748253055430,-500.0,0.00021918,2]
[362400514,1748253055439,-500.0,0.00021918,2]
[362400515,1748253055449,-500.0,0.00021918,2]
[362400516,1748253055458,-500.0,0.00021918,2]
[362400517,1748253055468,-500.0,0.00021918,2]
[362400518,1748253055478,-500.0,0.00021918,2]
[362400519,1748253055487,-500.0,0.00021918,2]
[362400520,1748253055497,-500.0,0.00021918,2]
[362400521,1748253055506,-500.0,0.00021918,2]
[362400522,1748253055516,-500.0,0.00021918,2]
[362400523,1748253055525,-535.31745509,0.00021918,2]
[362400524,1748253055535,-500.0,0.00021918,2]
[362400525,1748253055545,-500.0,0.00021918,2]
[362400526,1748253055555,-500.0,0.00021918,2]
[362400527,1748253055565,-500.0,0.00021918,2]
[362400528,1748253055574,-500.0,0.00021918,2]
[362400529,1748253055583,-500.0,0.00021918,2]
[362400530,1748253055593,-248.3070376,0.00022,2]
[362400531,1748253055603,-500.0,0.00022,2]
[362400532,1748253055612,-172.1155725,0.00022,2]
[362400533,1748253055622,-250.0,0.00022,2]
[362400534,1748253055631,-4000.0,0.00022,4]
[362400535,1748253055640,-206.8,0.00022054,2]
[362400536,1748253055650,-232.70221099,0.0002211,2]
[362400537,1748253055659,-2351.0,0.00022147,2]
[362400538,1748253055669,-2500.0,0.00022164,2]
[362400539,1748253055678,-172.07,0.00022189,2]
[362400540,1748253055688,-206.8,0.00022191,2]
[362400541,1748253055698,-250.0,0.00022192,7]
[362400542,1748253055707,-907.26,0.00022192,2]
[362400543,1748253055716,-453.63,0.00022192,2]
[362400544,1748253055727,-453.63,0.00022192,2]
[362400545,1748253055736,-453.63,0.00022192,2]
[362400546,1748253055746,-906.53,0.00022192,2]
[362400547,1748253055755,-452.82,0.00022192,2]
[362400548,1748253055764,-162.76980145,0.00022298,2]
[362400549,1748253055774,-237.00467473,0.000223,2]
[362400550,1748253055785,-250.0,0.00022328,2]
[362400551,1748253055794,-206.8,0.00022328,2]
[362400552,1748253055804,-646.26735152,0.000224,2]
[362400553,1748253055814,-206.8,0.00022465,2]
[362400554,1748253055824,-1612.0,0.00022466,2]
[362400555,1748253055834,-20000.0,0.000225,5]
[362400556,1748253055844,-150.0,0.00022515,2]
[362400557,1748253055855,-1000.0,0.0002256,2]
[362400558,1748253055865,-206.8,0.00022602,2]
[362400559,1748253055875,-150.0,0.00022675,2]
[362400560,1748253055884,-150.0,0.0002269,2]
[362400561,1748253055893,-150.0,0.00022691,2]
[362400562,1748253055903,-150.0,0.00022695,2]
[362400563,1748253055912,-150.0,0.00022706,2]
[362400564,1748253055922,-150.0,0.00022706,2]
[362400565,1748253055931,-150.0,0.00022708,2]
[362400566,1748253055940,-150.0,0.00022709,2]
[362400567,1748253055950,-506.6393195,0.0002271,2]
[362400568,1748253055959,-3000.0,0.00022712,2]
[362400569,1748253055970,-206.8,0.00022739,2]
[362400570,1748253055980,-452.35,0.00022739,2]
[362400571,1748253055990,-151.0727843,0.00022745,2]
[362400572,1748253055999,-150.0,0.00022746,2]
[362400573,1748253056009,-993.66,0.00022767,2]
[362400574,1748253056018,-993.66,0.00022767,2]
[362400575,1748253056028,-993.66,0.00022767,2]
[362400576,1748253056039,-993.66,0.00022767,2]
[362400577,1748253056048,-993.66,0.00022767,2]
[362400578,1748253056058,-993.66,0.00022767,2]
[362400579,1748253056067,-993.66,0.00022767,2]
[362400580,1748253056077,-993.66,0.00022767,2]
[362400581,1748253056087,-993.66,0.00022767,2]
[362400582,1748253056096,-993.66,0.00022767,2]
[362400583,1748253056106,-993.66,0.00022767,2]
[362400584,1748253056118,-993.66,0.00022767,2]
[362400585,1748253056128,-993.66,0.00022767,2]
[362400586,1748253056137,-993.66,0.00022767,2]
[362400587,1748253056147,-993.66,0.00022767,2]
[362400588,1748253056156,-993.66,0.00022767,2]
[362400589,1748253056166,-993.66,0.00022767,2]
[362400590,1748253056176,-993.66,0.00022767,2]
[362400591,1748253056186,-993.66,0.00022767,2]
[362400592,1748253056195,-993.66,0.00022767,2]
[362400593,1748253056206,-993.66,0.00022767,2]
[362400594,1748253056215,-993.66,0.00022767,2]
[362400595,1748253056225,-993.66,0.00022767,2]
[362400596,1748253056235,-993.88731891,0.00022767,2]
[362400597,1748253056245,-150.0,0.00022768,2]
[362400598,1748253056255,-150.0,0.00022768,2]
[362400599,1748253056265,-150.0,0.00022774,2]
[362400600,1748253056275,-150.0,0.00022777,2]
[362400601,1748253056284,-150.0,0.00022778,2]
[362400602,1748253056293,-150.0,0.00022783,2]
[362400603,1748253056304,-1000.0,0.00022796,2]
[362400604,1748253056313,-150.0,0.00022804,2]
[362400605,1748253056323,-150.0,0.0002281,2]
[362400606,1748253056332,-150.0,0.00022815,2]
[362400607,1748253056342,-150.0,0.0002287,2]
[362400608,1748253056351,-150.0,0.00022873,2]
[362400609,1748253056362,-206.8,0.00022876,2]
[362400610,1748253056377,-150.0,0.00022876,2]
[362400611,1748253056387,-150.0,0.00022896,2]
[362400612,1748253056398,-150.0,0.00022904,2]
[362400613,1748253056408,-150.0,0.00022906,2]
[362400614,1748253056418,-150.0,0.00022914,2]
[362400615,1748253056428,-150.0,0.00022916,2]
[362400616,1748253056439,-150.0,0.0002292,2]
[362400617,1748253056449,-150.0,0.00022924,2]
[362400618,1748253056459,-150.0,0.00022928,2]
[362400619,1748253056468,-150.0,0.00022935,2]
[362400620,1748253056478,-150.0,0.00022941,2]
[362400621,1748253056489,-150.0,0.00022945,2]
[362400622,1748253056499,-150.0,0.00022949,2]
[362400623,1748253056508,-150.0,0.00022955,2]
[362400624,1748253056518,-150.0,0.00022959,2]
[362400625,1748253056528,-150.0,0.0002296,2]
[362400626,1748253056538,-300.0,0.0002297,2]
[362400627,1748253056547,-300.0,0.0002297,2]
[362400628,1748253056557,-700.0,0.0002297,2]
[362400629,1748253056566,-700.0,0.0002297,2]
[362400630,1748253056577,-844.60019437,0.0002297,2]
[362400631,1748253056586,-500.0,0.00022973,2]
[362400632,1748253056596,-500.0,0.00022973,2]
[362400633,1748253056606,-500.0,0.00022973,2]
[362400634,1748253056615,-500.0,0.00022973,2]
[362400635,1748253056625,-331.95337636,0.00022999,2]
[362400636,1748253056635,-209.1,0.00023,2]
[362400637,1748253056645,-30165.79,0.00023,7]
[362400638,1748253056654,-151.0,0.00023,7]
[362400639,1748253056664,-450.0,0.00023,2]
[362400640,1748253056675,-207.112538,0.00023,7]
[362400641,1748253056685,-1506.98980502,0.00023,2]
[362400642,1748253056694,-151.0,0.00023,2]
[362400643,1748253056704,-151.0,0.00023,2]
[362400644,1748253056714,-151.0,0.00023,2]
[362400645,1748253056725,-151.0,0.00023,2]
[362400646,1748253056735,-151.0,0.00023,2]
[362400647,1748253056745,-232.52569135,0.00023,2]
[362400648,1748253056754,-151.0,0.00023,7]
[362400649,1748253056764,-297.524751,0.00023,7]
[362400650,1748253056774,-297.524751,0.00023,7]
[362400651,1748253056784,-162.672506,0.00023,7]
[362400652,1748253056794,-169.775283,0.00023,7]
[362400653,1748253056804,-654.892989,0.00023,7]
[362400654,1748253056814,-654.892989,0.00023,7]
[362400655,1748253056823,-152.17605,0.00023,7]
[362400656,1748253056834,-151.0,0.00023,7]
[362400657,1748253056844,-151.0,0.00023,7]
[362400658,1748253056854,-151.0,0.00023,7]
[362400659,1748253056863,-151.0,0.00023,7]
[362400660,1748253056874,-151.0,0.00023,7]
[362400661,1748253056883,-151.0,0.00023,7]
[362400662,1748253056948,-155.217411,0.00023,7]
[362400663,1748253056959,-151.0,0.00023,7]
[362400664,1748253056968,-800.0,0.00023,8]
[362400665,1748253056978,-800.0,0.00023,8]
[362400666,1748253056988,-800.0,0.00023,8]
[362400667,1748253056999,-800.0,0.00023,8]
[362400668,1748253057008,-800.0,0.00023,8]
[362400669,1748253057018,-800.0,0.00023,8]
[362400670,1748253057028,-800.0,0.00023,8]
[362400671,1748253057040,-800.0,0.00023,8]
[362400672,1748253057050,-800.0,0.00023,8]
[362400673,1748253057060,-800.0,0.00023,8]
[362400674,1748253057070,-151.0,0.00023,7]
[362400675,1748253057079,-151.0,0.00023,7]
[362400676,1748253057089,-151.0,0.00023,7]
[362400677,1748253057099,-151.0,0.00023,7]
[362400678,1748253057109,-151.0,0.00023,7]
[362400679,1748253057119,-292.739126,0.00023,7]
[362400680,1748253057128,-151.0,0.00023,7]
[362400681,1748253057138,-232.386068,0.00023,7]
[362400682,1748253057148,-232.386068,0.00023,7]
[362400683,1748253057158,-200.0,0.00023,2]
[362400684,1748253057167,-4000.0,0.00023,4]
[362400685,1748253057176,-151.0,0.00023,7]
[362400686,1748253057185,-272.126462,0.00023,7]
[362400687,1748253057195,-272.126462,0.00023,7]
[362400688,1748253057205,-151.0,0.00023,7]
[362400689,1748253057217,-206.8,0.00023013,2]
[362400690,1748253057226,-250.0,0.00023014,7]
[362400691,1748253057236,-301.07,0.00023014,2]
[362400692,1748253057246,-150.0,0.00023014,2]
[362400693,1748253057256,-150.0,0.00023014,2]
[362400694,1748253057266,-150.0,0.00023014,2]
[362400695,1748253057276,-150.0,0.00023014,2]
[362400696,1748253057285,-150.0,0.00023014,2]
[362400697,1748253057294,-151.0,0.00023014,7]
[362400698,1748253057303,-860.86,0.00023062,2]
[362400699,1748253057312,-155.09069364,0.000231,2]
[362400700,1748253057322,-1000.0,0.00023115,2]
[362400701,1748253057332,-206.8,0.0002315,2]
[362400702,1748253057342,-3500.0,0.0002326,2]
[362400703,1748253057351,-206.8,0.00023287,2]
[362400704,1748253057360,-2006.02,0.000233,7]
[362400705,1748253057369,-1000.0,0.00023347,2]
[362400706,1748253057379,-838.61,0.00023404,2]
[362400707,1748253057388,-206.8,0.00023424,2]
[362400708,1748253057398,-30000.0,0.000235,7]
[362400709,1748253057408,-200.0,0.000235,2]
[362400710,1748253057417,-237.00467473,0.000235,2]
[362400711,1748253057426,-1000.0,0.00023521,2]
[362400712,1748253057435,-497.67821093,0.00023521,2]
[362400713,1748253057445,-1000.0,0.00023521,2]
[362400714,1748253057454,-989.49831959,0.00023521,2]
[362400715,1748253057464,-206.8,0.00023561,2]
[362400716,1748253057474,-206.8,0.00023698,2]
[362400717,1748253057484,-2280.80250551,0.00023808,2]
[362400718,1748253057493,-206.8,0.00023835,2]
[362400719,1748253057503,-1464.5,0.00023836,2]
[362400720,1748253057512,-169.4,0.00023836,2]
[362400721,1748253057523,-150.0,0.00023836,2]
[362400722,1748253057532,-381.68,0.00023836,2]
[362400723,1748253057542,-150.34,0.00023836,2]
[362400724,1748253057552,-162.93,0.00023836,2]
[362400725,1748253057562,-1160.15,0.00023836,2]
[362400726,1748253057571,-1160.15,0.00023836,2]
[362400727,1748253057581,-170.24,0.00023836,2]
[362400728,1748253057590,-170.24,0.00023836,2]
[362400729,1748253057600,-453.7,0.00023836,2]
[362400730,1748253057610,-343.42,0.00023836,2]
[362400731,1748253057619,-1160.15,0.00023836,2]
[362400732,1748253057629,-170.24,0.00023836,2]
[362400733,1748253057640,-1160.15,0.00023836,2]
[362400734,1748253057649,-170.26,0.00023836,2]
[362400735,1748253057659,-336.19,0.00023836,2]
[362400736,1748253057669,-751.94,0.00023836,2]
[362400737,1748253057678,-300.0,0.0002397,2]
[362400738,1748253057690,-206.8,0.00023972,2]
[362400739,1748253057701,-988.21618296,0.00024,2]
[362400740,1748253057711,-4000.0,0.00024,4]
[362400741,1748253057721,-1500.0,0.00024068,2]
[362400742,1748253057731,-1500.0,0.00024068,2]
[362400743,1748253057742,-206.8,0.00024109,2]
[362400744,1748253057752,-452.35,0.00024109,2]
[362400745,1748253057762,-420.0,0.00024109,2]
[362400746,1748253057771,-420.0,0.00024109,2]
[362400747,1748253057781,-420.0,0.00024109,2]
[362400748,1748253057791,-420.0,0.00024109,2]
[362400749,1748253057800,-420.0,0.00024109,2]
[362400750,1748253057811,-420.0,0.00024109,2]
[362400751,1748253057821,-420.0,0.00024109,2]
[362400752,1748253057830,-420.0,0.00024109,2]
[362400753,1748253057840,-420.0,0.00024109,2]
[362400754,1748253057849,-420.0,0.00024109,2]
[362400755,1748253057859,-420.0,0.00024109,2]
[362400756,1748253057869,-187.59813458,0.00024109,2]
[362400757,1748253057879,-1000.0,0.00024134,2]
[362400758,1748253057889,-250.0,0.00024164,7]
[362400759,1748253057898,-408.4215648,0.0002421,2]
[362400760,1748253057908,-3579.6560837,0.0002421,2]
[362400761,1748253057918,-206.8,0.00024246,2]
[362400762,1748253057927,-3292.0,0.00024272,2]
[362400763,1748253057936,-159.46571924,0.00024273,2]
[362400764,1748253057946,-500.0,0.00024273,2]
[362400765,1748253057955,-500.0,0.00024273,2]
[362400766,1748253057965,-505.55509178,0.00024273,2]
[362400767,1748253057974,-500.0,0.00024273,2]
[362400768,1748253057984,-502.92192488,0.00024273,2]
[362400769,1748253057994,-500.0,0.00024273,2]
[362400770,1748253058003,-500.0,0.00024273,2]
[362400771,1748253058013,-506.74337906,0.00024273,2]
[362400772,1748253058023,-516.74886627,0.00024273,2]